Workbook

Sheet Sheet1
B1: 12 octave | D1: 6 octave | F1: 3 octave | H1: 1 octave
B2: =1/24 -> 0.04166666667 | D2: =1/12 -> 0.08333333333 | F2: =1/6 -> 0.1666666667 | H2: =1/3 -> 0.3333333333
B3: =2^B2 -> 1.029302237 | D3: =2^D2 -> 1.059463094 | F3: =2^F2 -> 1.122462048 | H3: =2^H2 -> 1.25992105
A4: Center Freq | B4: lower | C4: upper | D4: lower | E4: upper | F4: lower | G4: upper | H4: lower | I4: upper
A5: 20 | B5: =$A5/B$3 -> 19.43063882 | C5: =$A5*B$3 -> 20.58604473 | D5: =$A5/D$3 -> 18.87748625 | E5: =$A5*D$3 -> 21.18926189 | F5: =$A5/F$3 -> 17.81797436 | G5: =$A5*F$3 -> 22.44924097 | H5: =$A5/H$3 -> 15.87401052 | I5: =$A5*H$3 -> 25.198421
A6: 20.6 | B6: =$A6/B$3 -> 20.01355799 | C6: =$A6*B$3 -> 21.20362607 | D6: =$A6/D$3 -> 19.44381084 | E6: =$A6*D$3 -> 21.82493974 | F6: =$A6/F$3 -> 18.35251359 | G6: =$A6*F$3 -> 23.1227182 | H6: =$A6/H$3 -> 16.35023084 | I6: =$A6*H$3 -> 25.95437363
A7: 21.2 | B7: 20.59647715 | C7: 21.82120742 | D7: 20.01013543 | E7: 22.4606176 | F7: 18.88705282 | G7: 23.79619542 | H7: 16.82645115 | I7: 26.71032626
A8: 21.8 | B8: 21.17939632 | C8: 22.43878876 | D8: 20.57646002 | E8: 23.09629546 | F8: 19.42159206 | G8: 24.46967265 | H8: 17.30267147 | I8: 27.46627889
A9: 22.4 | B9: 21.76231548 | C9: 23.0563701 | D9: 21.1427846 | E9: 23.73197331 | F9: 19.95613129 | G9: 25.14314988 | H9: 17.77889178 | I9: 28.22223152
A10: 23 | B10: 22.34523465 | C10: 23.67395144 | D10: 21.70910919 | E10: 24.36765117 | F10: 20.49067052 | G10: 25.81662711 | H10: 18.2551121 | I10: 28.97818415
A11: 23.6 | B11: 22.92815381 | C11: 24.29153278 | D11: 22.27543378 | E11: 25.00332903 | F11: 21.02520975 | G11: 26.49010434 | H11: 18.73133241 | I11: 29.73413678
A12: 24.3 | B12: 23.60822617 | C12: 25.01204435 | D12: 22.9361458 | E12: 25.74495319 | F12: 21.64883885 | G12: 27.27582777 | H12: 19.28692278 | I12: 30.61608151
A13: 25 | B13: 24.28829853 | C13: 25.73255592 | D13: 23.59685782 | E13: 26.48657736 | F13: 22.27246795 | G13: 28.06155121 | H13: 19.84251315 | I13: 31.49802625
A14: 25.8 | B14: 25.06552408 | C14: 26.55599771 | D14: 24.35195727 | E14: 27.33414783 | F14: 22.98518693 | G14: 28.95952085 | H14: 20.47747357 | I14: 32.50596309
A15: 26.5 | B15: 25.74559644 | C15: 27.27650927 | D15: 25.01266929 | E15: 28.075772 | F15: 23.60881603 | G15: 29.74524428 | H15: 21.03306394 | I15: 33.38790782
A16: 27.2 | B16: 26.4256688 | C16: 27.99702084 | D16: 25.6733813 | E16: 28.81739617 | F16: 24.23244513 | G16: 30.53096771 | H16: 21.58865431 | I16: 34.26985256
A17: 28 | B17: 27.20289435 | C17: 28.82046263 | D17: 26.42848076 | E17: 29.66496664 | F17: 24.94516411 | G17: 31.42893735 | H17: 22.22361473 | I17: 35.2777894
A18: 29 | B18: 28.17442629 | C18: 29.84976486 | D18: 27.37235507 | E18: 30.72442974 | F18: 25.83606283 | G18: 32.5513994 | H18: 23.01731525 | I18: 36.53771045
A19: 30 | B19: 29.14595823 | C19: 30.8790671 | D19: 28.31622938 | E19: 31.78389283 | F19: 26.72696154 | G19: 33.67386145 | H19: 23.81101578 | I19: 37.7976315
A20: 30.7 | B20: 29.82603059 | C20: 31.59957866 | D20: 28.9769414 | E20: 32.525517 | F20: 27.35059065 | G20: 34.45958488 | H20: 24.36660615 | I20: 38.67957623
A21: 31.5 | B21: 30.60325615 | C21: 32.42302045 | D21: 29.73204085 | E21: 33.37308747 | F21: 28.06330962 | G21: 35.35755452 | H21: 25.00156657 | I21: 39.68751307
A22: 32.5 | B22: 31.57478809 | C22: 33.45232269 | D22: 30.67591516 | E22: 34.43255057 | F22: 28.95420834 | G22: 36.48001657 | H22: 25.79526709 | I22: 40.94743412
A23: 33.5 | B23: 32.54632003 | C23: 34.48162493 | D23: 31.61978947 | E23: 35.49201366 | F23: 29.84510706 | G23: 37.60247862 | H23: 26.58896762 | I23: 42.20735517
A24: 34.5 | B24: 33.51785197 | C24: 35.51092716 | D24: 32.56366379 | E24: 36.55147676 | F24: 30.73600578 | G24: 38.72494067 | H24: 27.38266815 | I24: 43.46727622
A25: 35.5 | B25: 34.48938391 | C25: 36.5402294 | D25: 33.5075381 | E25: 37.61093985 | F25: 31.62690449 | G25: 39.84740271 | H25: 28.17636867 | I25: 44.72719727
A26: 36.5 | B26: 35.46091585 | C26: 37.56953164 | D26: 34.45141241 | E26: 38.67040294 | F26: 32.51780321 | G26: 40.96986476 | H26: 28.9700692 | I26: 45.98711832
A27: 37.5 | B27: 36.43244779 | C27: 38.59883387 | D27: 35.39528673 | E27: 39.72986604 | F27: 33.40870193 | G27: 42.09232681 | H27: 29.76376972 | I27: 47.24703937
A28: 38.7 | B28: 37.59828612 | C28: 39.83399656 | D28: 36.5279359 | E28: 41.00122175 | F28: 34.47778039 | G28: 43.43928127 | H28: 30.71621036 | I28: 48.75894463
A29: 40 | B29: 38.86127765 | C29: 41.17208947 | D29: 37.75497251 | E29: 42.37852377 | F29: 35.63594873 | G29: 44.89848193 | H29: 31.74802104 | I29: 50.396842
A30: 41.2 | B30: 40.02711598 | C30: 42.40725215 | D30: 38.88762168 | E30: 43.64987949 | F30: 36.70502719 | G30: 46.24543639 | H30: 32.70046167 | I30: 51.90874726
A31: 42.5 | B31: 41.2901075 | C31: 43.74534506 | D31: 40.11465829 | E31: 45.02718151 | F31: 37.86319552 | G31: 47.70463705 | H31: 33.73227235 | I31: 53.54664462
A32: 43.7 | B32: 42.45594583 | C32: 44.98050774 | D32: 41.24730746 | E32: 46.29853722 | F32: 38.93227398 | G32: 49.05159151 | H32: 34.68471299 | I32: 55.05854988
A33: 45 | B33: 43.71893735 | C33: 46.31860065 | D33: 42.47434407 | E33: 47.67583925 | F33: 40.09044232 | G33: 50.51079217 | H33: 35.71652367 | I33: 56.69644725
A34: 46.2 | B34: 44.88477568 | C34: 47.55376333 | D34: 43.60699325 | E34: 48.94719496 | F34: 41.15952078 | G34: 51.85774663 | H34: 36.6689643 | I34: 58.20835251
A35: 47.5 | B35: 46.1477672 | C35: 48.89185624 | D35: 44.83402985 | E35: 50.32449698 | F35: 42.31768911 | G35: 53.31694729 | H35: 37.70077498 | I35: 59.84624987
A36: 48.7 | B36: 47.31360553 | C36: 50.12701892 | D36: 45.96667903 | E36: 51.5958527 | F36: 43.38676757 | G36: 54.66390175 | H36: 38.65321562 | I36: 61.35815513
A37: 50 | B37: 48.57659706 | C37: 51.46511183 | D37: 47.19371563 | E37: 52.97315472 | F37: 44.54493591 | G37: 56.12310242 | H37: 39.6850263 | I37: 62.99605249
A38: 51.5 | B38: 50.03389497 | C38: 53.00906519 | D38: 48.6095271 | E38: 54.56234936 | F38: 45.88128398 | G38: 57.80679549 | H38: 40.87557709 | I38: 64.88593407
A39: 53 | B39: 51.49119288 | C39: 54.55301854 | D39: 50.02533857 | E39: 56.151544 | F39: 47.21763206 | G39: 59.49048856 | H39: 42.06612788 | I39: 66.77581564
A40: 54.5 | B40: 52.94849079 | C40: 56.0969719 | D40: 51.44115004 | E40: 57.74073864 | F40: 48.55398014 | G40: 61.17418163 | H40: 43.25667867 | I40: 68.66569722
A41: 56 | B41: 54.4057887 | C41: 57.64092525 | D41: 52.85696151 | E41: 59.32993328 | F41: 49.89032822 | G41: 62.85787471 | H41: 44.44722946 | I41: 70.55557879
A42: 58 | B42: 56.34885259 | C42: 59.69952973 | D42: 54.74471014 | E42: 61.44885947 | F42: 51.67212565 | G42: 65.1027988 | H42: 46.03463051 | I42: 73.07542089
A43: 60 | B43: 58.29191647 | C43: 61.7581342 | D43: 56.63245876 | E43: 63.56778566 | F43: 53.45392309 | G43: 67.3477229 | H43: 47.62203156 | I43: 75.59526299
A44: 61.5 | B44: 59.74921438 | C44: 63.30208755 | D44: 58.04827023 | E44: 65.1569803 | F44: 54.79027117 | G44: 69.03141597 | H44: 48.81258235 | I44: 77.48514457
A45: 63 | B45: 61.20651229 | C45: 64.84604091 | D45: 59.4640817 | E45: 66.74617494 | F45: 56.12661924 | G45: 70.71510904 | H45: 50.00313314 | I45: 79.37502614
A46: 65 | B46: 63.14957617 | C46: 66.90464538 | D46: 61.35183032 | E46: 68.86510113 | F46: 57.90841668 | G46: 72.96003314 | H46: 51.59053419 | I46: 81.89486824
A47: 67 | B47: 65.09264006 | C47: 68.96324986 | D47: 63.23957895 | E47: 70.98402732 | F47: 59.69021412 | G47: 75.20495724 | H47: 53.17793524 | I47: 84.41471034
A48: 69 | B48: 67.03570394 | C48: 71.02185433 | D48: 65.12732758 | E48: 73.10295351 | F48: 61.47201155 | G48: 77.44988133 | H48: 54.76533629 | I48: 86.93455244
A49: 71 | B49: 68.97876782 | C49: 73.0804588 | D49: 67.0150762 | E49: 75.2218797 | F49: 63.25380899 | G49: 79.69480543 | H49: 56.35273734 | I49: 89.45439454
A50: 73 | B50: 70.9218317 | C50: 75.13906327 | D50: 68.90282483 | E50: 77.34080589 | F50: 65.03560642 | G50: 81.93972953 | H50: 57.9401384 | I50: 91.97423664
A51: 75 | B51: 72.86489559 | C51: 77.19766775 | D51: 70.79057345 | E51: 79.45973208 | F51: 66.81740386 | G51: 84.18465362 | H51: 59.52753945 | I51: 94.49407874
A52: 77.5 | B52: 75.29372544 | C52: 79.77092334 | D52: 73.15025923 | E52: 82.10838981 | F52: 69.04465066 | G52: 86.99080874 | H52: 61.51179076 | I52: 97.64388137
A53: 80 | B53: 77.72255529 | C53: 82.34417893 | D53: 75.50994501 | E53: 84.75704755 | F53: 71.27189745 | G53: 89.79696386 | H53: 63.49604208 | I53: 100.793684
A54: 82.5 | B54: 80.15138515 | C54: 84.91743452 | D54: 77.8696308 | E54: 87.40570528 | F54: 73.49914425 | G54: 92.60311899 | H54: 65.48029339 | I54: 103.9434866
A55: 85 | B55: 82.580215 | C55: 87.49069011 | D55: 80.22931658 | E55: 90.05436302 | F55: 75.72639104 | G55: 95.40927411 | H55: 67.46454471 | I55: 107.0932892
A56: 87.5 | B56: 85.00904485 | C56: 90.06394571 | D56: 82.58900236 | E56: 92.70302076 | F56: 77.95363784 | G56: 98.21542923 | H56: 69.44879602 | I56: 110.2430919
A57: 90 | B57: 87.4378747 | C57: 92.6372013 | D57: 84.94868814 | E57: 95.35167849 | F57: 80.18088463 | G57: 101.0215843 | H57: 71.43304734 | I57: 113.3928945
A58: 92.5 | B58: 89.86670456 | C58: 95.21045689 | D58: 87.30837392 | E58: 98.00033623 | F58: 82.40813143 | G58: 103.8277395 | H58: 73.41729865 | I58: 116.5426971
A59: 95 | B59: 92.29553441 | C59: 97.78371248 | D59: 89.6680597 | E59: 100.648994 | F59: 84.63537822 | G59: 106.6338946 | H59: 75.40154997 | I59: 119.6924997
A60: 97.5 | B60: 94.72436426 | C60: 100.3569681 | D60: 92.02774549 | E60: 103.2976517 | F60: 86.86262502 | G60: 109.4400497 | H60: 77.38580128 | I60: 122.8423024
A61: 100 | B61: 97.15319412 | C61: 102.9302237 | D61: 94.38743127 | E61: 105.9463094 | F61: 89.08987181 | G61: 112.2462048 | H61: 79.3700526 | I61: 125.992105
A62: 103 | B62: 100.0677899 | C62: 106.0181304 | D62: 97.21905421 | E62: 109.1246987 | F62: 91.76256797 | G62: 115.613591 | H62: 81.75115418 | I62: 129.7718681
A63: 106 | B63: 102.9823858 | C63: 109.1060371 | D63: 100.0506771 | E63: 112.303088 | F63: 94.43526412 | G63: 118.9809771 | H63: 84.13225575 | I63: 133.5516313
A64: 109 | B64: 105.8969816 | C64: 112.1939438 | D64: 102.8823001 | E64: 115.4814773 | F64: 97.10796028 | G64: 122.3483633 | H64: 86.51335733 | I64: 137.3313944
A65: 112 | B65: 108.8115774 | C65: 115.2818505 | D65: 105.713923 | E65: 118.6598666 | F65: 99.78065643 | G65: 125.7157494 | H65: 88.89445891 | I65: 141.1111576
A66: 115 | B66: 111.7261732 | C66: 118.3697572 | D66: 108.545546 | E66: 121.8382559 | F66: 102.4533526 | G66: 129.0831356 | H66: 91.27556049 | I66: 144.8909207
A67: 118 | B67: 114.6407691 | C67: 121.4576639 | D67: 111.3771689 | E67: 125.0166451 | F67: 105.1260487 | G67: 132.4505217 | H67: 93.65666207 | I67: 148.6706839
A68: 122 | B68: 118.5268968 | C68: 125.5748729 | D68: 115.1526661 | E68: 129.2544975 | F68: 108.6896436 | G68: 136.9403699 | H68: 96.83146417 | I68: 153.7103681
A69: 125 | B69: 121.4414926 | C69: 128.6627796 | D69: 117.9842891 | E69: 132.4328868 | F69: 111.3623398 | G69: 140.307756 | H69: 99.21256575 | I69: 157.4901312
A70: 128 | B70: =$A70/B$3 -> 124.3560885 | C70: =$A70*B$3 -> 131.7506863 | D70: =$A70/D$3 -> 120.815912 | E70: =$A70*D$3 -> 135.6112761 | F70: =$A70/F$3 -> 114.0350359 | G70: =$A70*F$3 -> 143.6751422 | H70: =$A70/H$3 -> 101.5936673 | I70: =$A70*H$3 -> 161.2698944
A71: 132 | B71: 128.2422162 | C71: 135.8678952 | D71: 124.5914093 | E71: 139.8491285 | F71: 117.5986308 | G71: 148.1649904 | H71: 104.7684694 | I71: 166.3095786
A72: 136 | B72: 132.128344 | C72: 139.9851042 | D72: 128.3669065 | E72: 144.0869808 | F72: 121.1622257 | G72: 152.6548386 | H72: 107.9432715 | I72: 171.3492628
A73: 140 | B73: 136.0144718 | C73: 144.1023131 | D73: 132.1424038 | E73: 148.3248332 | F73: 124.7258205 | G73: 157.1446868 | H73: 111.1180736 | I73: 176.388947
A74: 145 | B74: 140.8721315 | C74: 149.2488243 | D74: 136.8617753 | E74: 153.6221487 | F74: 129.1803141 | G74: 162.756997 | H74: 115.0865763 | I74: 182.6885522
A75: 150 | B75: 145.7297912 | C75: 154.3953355 | D75: 141.5811469 | E75: 158.9194642 | F75: 133.6348077 | G75: 168.3693072 | H75: 119.0550789 | I75: 188.9881575
A76: 155 | B76: 150.5874509 | C76: 159.5418467 | D76: 146.3005185 | E76: 164.2167796 | F76: 138.0893013 | G76: 173.9816175 | H76: 123.0235815 | I76: 195.2877627
A77: 160 | B77: 155.4451106 | C77: 164.6883579 | D77: 151.01989 | E77: 169.5140951 | F77: 142.5437949 | G77: 179.5939277 | H77: 126.9920842 | I77: 201.587368
A78: 165 | B78: 160.3027703 | C78: 169.834869 | D78: 155.7392616 | E78: 174.8114106 | F78: 146.9982885 | G78: 185.206238 | H78: 130.9605868 | I78: 207.8869732
A79: 170 | B79: 165.16043 | C79: 174.9813802 | D79: 160.4586332 | E79: 180.108726 | F79: 151.4527821 | G79: 190.8185482 | H79: 134.9290894 | I79: 214.1865785
A80: 175 | B80: 170.0180897 | C80: 180.1278914 | D80: 165.1780047 | E80: 185.4060415 | F80: 155.9072757 | G80: 196.4308585 | H80: 138.897592 | I80: 220.4861837
A81: 180 | B81: 174.8757494 | C81: 185.2744026 | D81: 169.8973763 | E81: 190.703357 | F81: 160.3617693 | G81: 202.0431687 | H81: 142.8660947 | I81: 226.785789
A82: 185 | B82: 179.7334091 | C82: 190.4209138 | D82: 174.6167478 | E82: 196.0006725 | F82: 164.8162629 | G82: 207.6554789 | H82: 146.8345973 | I82: 233.0853942
A83: 190 | B83: 184.5910688 | C83: 195.567425 | D83: 179.3361194 | E83: 201.2979879 | F83: 169.2707564 | G83: 213.2677892 | H83: 150.8030999 | I83: 239.3849995
A84: 195 | B84: 189.4487285 | C84: 200.7139361 | D84: 184.055491 | E84: 206.5953034 | F84: 173.72525 | G84: 218.8800994 | H84: 154.7716026 | I84: 245.6846047
A85: 200 | B85: 194.3063882 | C85: 205.8604473 | D85: 188.7748625 | E85: 211.8926189 | F85: 178.1797436 | G85: 224.4924097 | H85: 158.7401052 | I85: 251.98421
A86: 206 | B86: 200.1355799 | C86: 212.0362607 | D86: 194.4381084 | E86: 218.2493974 | F86: 183.5251359 | G86: 231.227182 | H86: 163.5023084 | I86: 259.5437363
A87: 212 | B87: 205.9647715 | C87: 218.2120742 | D87: 200.1013543 | E87: 224.606176 | F87: 188.8705282 | G87: 237.9619542 | H87: 168.2645115 | I87: 267.1032626
A88: 218 | B88: 211.7939632 | C88: 224.3878876 | D88: 205.7646002 | E88: 230.9629546 | F88: 194.2159206 | G88: 244.6967265 | H88: 173.0267147 | I88: 274.6627889
A89: 224 | B89: 217.6231548 | C89: 230.563701 | D89: 211.427846 | E89: 237.3197331 | F89: 199.5613129 | G89: 251.4314988 | H89: 177.7889178 | I89: 282.2223152
A90: 230 | B90: 223.4523465 | C90: 236.7395144 | D90: 217.0910919 | E90: 243.6765117 | F90: 204.9067052 | G90: 258.1662711 | H90: 182.551121 | I90: 289.7818415
A91: 236 | B91: 229.2815381 | C91: 242.9153278 | D91: 222.7543378 | E91: 250.0332903 | F91: 210.2520975 | G91: 264.9010434 | H91: 187.3133241 | I91: 297.3413678
A92: 243 | B92: 236.0822617 | C92: 250.1204435 | D92: 229.361458 | E92: 257.4495319 | F92: 216.4883885 | G92: 272.7582777 | H92: 192.8692278 | I92: 306.1608151
A93: 250 | B93: 242.8829853 | C93: 257.3255592 | D93: 235.9685782 | E93: 264.8657736 | F93: 222.7246795 | G93: 280.6155121 | H93: 198.4251315 | I93: 314.9802625
A94: 258 | B94: 250.6552408 | C94: 265.5599771 | D94: 243.5195727 | E94: 273.3414783 | F94: 229.8518693 | G94: 289.5952085 | H94: 204.7747357 | I94: 325.0596309
A95: 265 | B95: 257.4559644 | C95: 272.7650927 | D95: 250.1266929 | E95: 280.75772 | F95: 236.0881603 | G95: 297.4524428 | H95: 210.3306394 | I95: 333.8790782
A96: 272 | B96: 264.256688 | C96: 279.9702084 | D96: 256.733813 | E96: 288.1739617 | F96: 242.3244513 | G96: 305.3096771 | H96: 215.8865431 | I96: 342.6985256
A97: 280 | B97: 272.0289435 | C97: 288.2046263 | D97: 264.2848076 | E97: 296.6496664 | F97: 249.4516411 | G97: 314.2893735 | H97: 222.2361473 | I97: 352.777894
A98: 290 | B98: 281.7442629 | C98: 298.4976486 | D98: 273.7235507 | E98: 307.2442974 | F98: 258.3606283 | G98: 325.513994 | H98: 230.1731525 | I98: 365.3771045
A99: 300 | B99: 291.4595823 | C99: 308.790671 | D99: 283.1622938 | E99: 317.8389283 | F99: 267.2696154 | G99: 336.7386145 | H99: 238.1101578 | I99: 377.976315
A100: 307 | B100: 298.2603059 | C100: 315.9957866 | D100: 289.769414 | E100: 325.25517 | F100: 273.5059065 | G100: 344.5958488 | H100: 243.6660615 | I100: 386.7957623
A101: 315 | B101: 306.0325615 | C101: 324.2302045 | D101: 297.3204085 | E101: 333.7308747 | F101: 280.6330962 | G101: 353.5755452 | H101: 250.0156657 | I101: 396.8751307
A102: 325 | B102: 315.7478809 | C102: 334.5232269 | D102: 306.7591516 | E102: 344.3255057 | F102: 289.5420834 | G102: 364.8001657 | H102: 257.9526709 | I102: 409.4743412
A103: 335 | B103: 325.4632003 | C103: 344.8162493 | D103: 316.1978947 | E103: 354.9201366 | F103: 298.4510706 | G103: 376.0247862 | H103: 265.8896762 | I103: 422.0735517
A104: 345 | B104: 335.1785197 | C104: 355.1092716 | D104: 325.6366379 | E104: 365.5147676 | F104: 307.3600578 | G104: 387.2494067 | H104: 273.8266815 | I104: 434.6727622
A105: 355 | B105: 344.8938391 | C105: 365.402294 | D105: 335.075381 | E105: 376.1093985 | F105: 316.2690449 | G105: 398.4740271 | H105: 281.7636867 | I105: 447.2719727
A106: 365 | B106: 354.6091585 | C106: 375.6953164 | D106: 344.5141241 | E106: 386.7040294 | F106: 325.1780321 | G106: 409.6986476 | H106: 289.700692 | I106: 459.8711832
A107: 375 | B107: 364.3244779 | C107: 385.9883387 | D107: 353.9528673 | E107: 397.2986604 | F107: 334.0870193 | G107: 420.9232681 | H107: 297.6376972 | I107: 472.4703937
A108: 387 | B108: 375.9828612 | C108: 398.3399656 | D108: 365.279359 | E108: 410.0122175 | F108: 344.7778039 | G108: 434.3928127 | H108: 307.1621036 | I108: 487.5894463
A109: 400 | B109: 388.6127765 | C109: 411.7208947 | D109: 377.5497251 | E109: 423.7852377 | F109: 356.3594873 | G109: 448.9848193 | H109: 317.4802104 | I109: 503.96842
A110: 412 | B110: 400.2711598 | C110: 424.0725215 | D110: 388.8762168 | E110: 436.4987949 | F110: 367.0502719 | G110: 462.4543639 | H110: 327.0046167 | I110: 519.0874726
A111: 425 | B111: 412.901075 | C111: 437.4534506 | D111: 401.1465829 | E111: 450.2718151 | F111: 378.6319552 | G111: 477.0463705 | H111: 337.3227235 | I111: 535.4664462
A112: 437 | B112: 424.5594583 | C112: 449.8050774 | D112: 412.4730746 | E112: 462.9853722 | F112: 389.3227398 | G112: 490.5159151 | H112: 346.8471299 | I112: 550.5854988
A113: 450 | B113: 437.1893735 | C113: 463.1860065 | D113: 424.7434407 | E113: 476.7583925 | F113: 400.9044232 | G113: 505.1079217 | H113: 357.1652367 | I113: 566.9644725
A114: 462 | B114: 448.8477568 | C114: 475.5376333 | D114: 436.0699325 | E114: 489.4719496 | F114: 411.5952078 | G114: 518.5774663 | H114: 366.689643 | I114: 582.0835251
A115: 475 | B115: 461.477672 | C115: 488.9185624 | D115: 448.3402985 | E115: 503.2449698 | F115: 423.1768911 | G115: 533.1694729 | H115: 377.0077498 | I115: 598.4624987
A116: 487 | B116: 473.1360553 | C116: 501.2701892 | D116: 459.6667903 | E116: 515.958527 | F116: 433.8676757 | G116: 546.6390175 | H116: 386.5321562 | I116: 613.5815513
A117: 500 | B117: 485.7659706 | C117: 514.6511183 | D117: 471.9371563 | E117: 529.7315472 | F117: 445.4493591 | G117: 561.2310242 | H117: 396.850263 | I117: 629.9605249
A118: 515 | B118: 500.3389497 | C118: 530.0906519 | D118: 486.095271 | E118: 545.6234936 | F118: 458.8128398 | G118: 578.0679549 | H118: 408.7557709 | I118: 648.8593407
A119: 530 | B119: 514.9119288 | C119: 545.5301854 | D119: 500.2533857 | E119: 561.51544 | F119: 472.1763206 | G119: 594.9048856 | H119: 420.6612788 | I119: 667.7581564
A120: 545 | B120: 529.4849079 | C120: 560.969719 | D120: 514.4115004 | E120: 577.4073864 | F120: 485.5398014 | G120: 611.7418163 | H120: 432.5667867 | I120: 686.6569722
A121: 560 | B121: 544.057887 | C121: 576.4092525 | D121: 528.5696151 | E121: 593.2993328 | F121: 498.9032822 | G121: 628.5787471 | H121: 444.4722946 | I121: 705.5557879
A122: 580 | B122: 563.4885259 | C122: 596.9952973 | D122: 547.4471014 | E122: 614.4885947 | F122: 516.7212565 | G122: 651.027988 | H122: 460.3463051 | I122: 730.7542089
A123: 600 | B123: 582.9191647 | C123: 617.581342 | D123: 566.3245876 | E123: 635.6778566 | F123: 534.5392309 | G123: 673.477229 | H123: 476.2203156 | I123: 755.9526299
A124: 615 | B124: 597.4921438 | C124: 633.0208755 | D124: 580.4827023 | E124: 651.569803 | F124: 547.9027117 | G124: 690.3141597 | H124: 488.1258235 | I124: 774.8514457
A125: 630 | B125: 612.0651229 | C125: 648.4604091 | D125: 594.640817 | E125: 667.4617494 | F125: 561.2661924 | G125: 707.1510904 | H125: 500.0313314 | I125: 793.7502614
A126: 650 | B126: 631.4957617 | C126: 669.0464538 | D126: 613.5183032 | E126: 688.6510113 | F126: 579.0841668 | G126: 729.6003314 | H126: 515.9053419 | I126: 818.9486824
A127: 670 | B127: 650.9264006 | C127: 689.6324986 | D127: 632.3957895 | E127: 709.8402732 | F127: 596.9021412 | G127: 752.0495724 | H127: 531.7793524 | I127: 844.1471034
A128: 690 | B128: 670.3570394 | C128: 710.2185433 | D128: 651.2732758 | E128: 731.0295351 | F128: 614.7201155 | G128: 774.4988133 | H128: 547.6533629 | I128: 869.3455244
A129: 710 | B129: 689.7876782 | C129: 730.804588 | D129: 670.150762 | E129: 752.218797 | F129: 632.5380899 | G129: 796.9480543 | H129: 563.5273734 | I129: 894.5439454
A130: 730 | B130: 709.218317 | C130: 751.3906327 | D130: 689.0282483 | E130: 773.4080589 | F130: 650.3560642 | G130: 819.3972953 | H130: 579.401384 | I130: 919.7423664
A131: 750 | B131: 728.6489559 | C131: 771.9766775 | D131: 707.9057345 | E131: 794.5973208 | F131: 668.1740386 | G131: 841.8465362 | H131: 595.2753945 | I131: 944.9407874
A132: 775 | B132: 752.9372544 | C132: 797.7092334 | D132: 731.5025923 | E132: 821.0838981 | F132: 690.4465066 | G132: 869.9080874 | H132: 615.1179076 | I132: 976.4388137
A133: 800 | B133: 777.2255529 | C133: 823.4417893 | D133: 755.0994501 | E133: 847.5704755 | F133: 712.7189745 | G133: 897.9696386 | H133: 634.9604208 | I133: 1007.93684
A134: 825 | B134: =$A134/B$3 -> 801.5138515 | C134: =$A134*B$3 -> 849.1743452 | D134: =$A134/D$3 -> 778.696308 | E134: =$A134*D$3 -> 874.0570528 | F134: =$A134/F$3 -> 734.9914425 | G134: =$A134*F$3 -> 926.0311899 | H134: =$A134/H$3 -> 654.8029339 | I134: =$A134*H$3 -> 1039.434866
A135: 850 | B135: 825.80215 | C135: 874.9069011 | D135: 802.2931658 | E135: 900.5436302 | F135: 757.2639104 | G135: 954.0927411 | H135: 674.6454471 | I135: 1070.932892
A136: 875 | B136: 850.0904485 | C136: 900.6394571 | D136: 825.8900236 | E136: 927.0302076 | F136: 779.5363784 | G136: 982.1542923 | H136: 694.4879602 | I136: 1102.430919
A137: 900 | B137: 874.378747 | C137: 926.372013 | D137: 849.4868814 | E137: 953.5167849 | F137: 801.8088463 | G137: 1010.215843 | H137: 714.3304734 | I137: 1133.928945
A138: 925 | B138: 898.6670456 | C138: 952.1045689 | D138: 873.0837392 | E138: 980.0033623 | F138: 824.0813143 | G138: 1038.277395 | H138: 734.1729865 | I138: 1165.426971
A139: 950 | B139: 922.9553441 | C139: 977.8371248 | D139: 896.680597 | E139: 1006.48994 | F139: 846.3537822 | G139: 1066.338946 | H139: 754.0154997 | I139: 1196.924997
A140: 975 | B140: 947.2436426 | C140: 1003.569681 | D140: 920.2774549 | E140: 1032.976517 | F140: 868.6262502 | G140: 1094.400497 | H140: 773.8580128 | I140: 1228.423024
A141: 1000 | B141: 971.5319412 | C141: 1029.302237 | D141: 943.8743127 | E141: 1059.463094 | F141: 890.8987181 | G141: 1122.462048 | H141: 793.700526 | I141: 1259.92105
A142: 1030 | B142: 1000.677899 | C142: 1060.181304 | D142: 972.1905421 | E142: 1091.246987 | F142: 917.6256797 | G142: 1156.13591 | H142: 817.5115418 | I142: 1297.718681
A143: 1060 | B143: 1029.823858 | C143: 1091.060371 | D143: 1000.506771 | E143: 1123.03088 | F143: 944.3526412 | G143: 1189.809771 | H143: 841.3225575 | I143: 1335.516313
A144: 1090 | B144: 1058.969816 | C144: 1121.939438 | D144: 1028.823001 | E144: 1154.814773 | F144: 971.0796028 | G144: 1223.483633 | H144: 865.1335733 | I144: 1373.313944
A145: 1120 | B145: 1088.115774 | C145: 1152.818505 | D145: 1057.13923 | E145: 1186.598666 | F145: 997.8065643 | G145: 1257.157494 | H145: 888.9445891 | I145: 1411.111576
A146: 1150 | B146: 1117.261732 | C146: 1183.697572 | D146: 1085.45546 | E146: 1218.382559 | F146: 1024.533526 | G146: 1290.831356 | H146: 912.7556049 | I146: 1448.909207
A147: 1180 | B147: 1146.407691 | C147: 1214.576639 | D147: 1113.771689 | E147: 1250.166451 | F147: 1051.260487 | G147: 1324.505217 | H147: 936.5666207 | I147: 1486.706839
A148: 1220 | B148: 1185.268968 | C148: 1255.748729 | D148: 1151.526661 | E148: 1292.544975 | F148: 1086.896436 | G148: 1369.403699 | H148: 968.3146417 | I148: 1537.103681
A149: 1250 | B149: 1214.414926 | C149: 1286.627796 | D149: 1179.842891 | E149: 1324.328868 | F149: 1113.623398 | G149: 1403.07756 | H149: 992.1256575 | I149: 1574.901312
A150: 1280 | B150: 1243.560885 | C150: 1317.506863 | D150: 1208.15912 | E150: 1356.112761 | F150: 1140.350359 | G150: 1436.751422 | H150: 1015.936673 | I150: 1612.698944
A151: 1320 | B151: 1282.422162 | C151: 1358.678952 | D151: 1245.914093 | E151: 1398.491285 | F151: 1175.986308 | G151: 1481.649904 | H151: 1047.684694 | I151: 1663.095786
A152: 1360 | B152: 1321.28344 | C152: 1399.851042 | D152: 1283.669065 | E152: 1440.869808 | F152: 1211.622257 | G152: 1526.548386 | H152: 1079.432715 | I152: 1713.492628
A153: 1400 | B153: 1360.144718 | C153: 1441.023131 | D153: 1321.424038 | E153: 1483.248332 | F153: 1247.258205 | G153: 1571.446868 | H153: 1111.180736 | I153: 1763.88947
A154: 1450 | B154: 1408.721315 | C154: 1492.488243 | D154: 1368.617753 | E154: 1536.221487 | F154: 1291.803141 | G154: 1627.56997 | H154: 1150.865763 | I154: 1826.885522
A155: 1500 | B155: 1457.297912 | C155: 1543.953355 | D155: 1415.811469 | E155: 1589.194642 | F155: 1336.348077 | G155: 1683.693072 | H155: 1190.550789 | I155: 1889.881575
A156: 1550 | B156: 1505.874509 | C156: 1595.418467 | D156: 1463.005185 | E156: 1642.167796 | F156: 1380.893013 | G156: 1739.816175 | H156: 1230.235815 | I156: 1952.877627
A157: 1600 | B157: 1554.451106 | C157: 1646.883579 | D157: 1510.1989 | E157: 1695.140951 | F157: 1425.437949 | G157: 1795.939277 | H157: 1269.920842 | I157: 2015.87368
A158: 1650 | B158: 1603.027703 | C158: 1698.34869 | D158: 1557.392616 | E158: 1748.114106 | F158: 1469.982885 | G158: 1852.06238 | H158: 1309.605868 | I158: 2078.869732
A159: 1700 | B159: 1651.6043 | C159: 1749.813802 | D159: 1604.586332 | E159: 1801.08726 | F159: 1514.527821 | G159: 1908.185482 | H159: 1349.290894 | I159: 2141.865785
A160: 1750 | B160: 1700.180897 | C160: 1801.278914 | D160: 1651.780047 | E160: 1854.060415 | F160: 1559.072757 | G160: 1964.308585 | H160: 1388.97592 | I160: 2204.861837
A161: 1800 | B161: 1748.757494 | C161: 1852.744026 | D161: 1698.973763 | E161: 1907.03357 | F161: 1603.617693 | G161: 2020.431687 | H161: 1428.660947 | I161: 2267.85789
A162: 1850 | B162: 1797.334091 | C162: 1904.209138 | D162: 1746.167478 | E162: 1960.006725 | F162: 1648.162629 | G162: 2076.554789 | H162: 1468.345973 | I162: 2330.853942
A163: 1900 | B163: 1845.910688 | C163: 1955.67425 | D163: 1793.361194 | E163: 2012.979879 | F163: 1692.707564 | G163: 2132.677892 | H163: 1508.030999 | I163: 2393.849995
A164: 1950 | B164: 1894.487285 | C164: 2007.139361 | D164: 1840.55491 | E164: 2065.953034 | F164: 1737.2525 | G164: 2188.800994 | H164: 1547.716026 | I164: 2456.846047
A165: 2000 | B165: 1943.063882 | C165: 2058.604473 | D165: 1887.748625 | E165: 2118.926189 | F165: 1781.797436 | G165: 2244.924097 | H165: 1587.401052 | I165: 2519.8421
A166: 2060 | B166: 2001.355799 | C166: 2120.362607 | D166: 1944.381084 | E166: 2182.493974 | F166: 1835.251359 | G166: 2312.27182 | H166: 1635.023084 | I166: 2595.437363
A167: 2120 | B167: 2059.647715 | C167: 2182.120742 | D167: 2001.013543 | E167: 2246.06176 | F167: 1888.705282 | G167: 2379.619542 | H167: 1682.645115 | I167: 2671.032626
A168: 2180 | B168: 2117.939632 | C168: 2243.878876 | D168: 2057.646002 | E168: 2309.629546 | F168: 1942.159206 | G168: 2446.967265 | H168: 1730.267147 | I168: 2746.627889
A169: 2240 | B169: 2176.231548 | C169: 2305.63701 | D169: 2114.27846 | E169: 2373.197331 | F169: 1995.613129 | G169: 2514.314988 | H169: 1777.889178 | I169: 2822.223152
A170: 2300 | B170: 2234.523465 | C170: 2367.395144 | D170: 2170.910919 | E170: 2436.765117 | F170: 2049.067052 | G170: 2581.662711 | H170: 1825.51121 | I170: 2897.818415
A171: 2360 | B171: 2292.815381 | C171: 2429.153278 | D171: 2227.543378 | E171: 2500.332903 | F171: 2102.520975 | G171: 2649.010434 | H171: 1873.133241 | I171: 2973.413678
A172: 2430 | B172: 2360.822617 | C172: 2501.204435 | D172: 2293.61458 | E172: 2574.495319 | F172: 2164.883885 | G172: 2727.582777 | H172: 1928.692278 | I172: 3061.608151
A173: 2500 | B173: 2428.829853 | C173: 2573.255592 | D173: 2359.685782 | E173: 2648.657736 | F173: 2227.246795 | G173: 2806.155121 | H173: 1984.251315 | I173: 3149.802625
A174: 2580 | B174: 2506.552408 | C174: 2655.599771 | D174: 2435.195727 | E174: 2733.414783 | F174: 2298.518693 | G174: 2895.952085 | H174: 2047.747357 | I174: 3250.596309
A175: 2650 | B175: 2574.559644 | C175: 2727.650927 | D175: 2501.266929 | E175: 2807.5772 | F175: 2360.881603 | G175: 2974.524428 | H175: 2103.306394 | I175: 3338.790782
A176: 2720 | B176: 2642.56688 | C176: 2799.702084 | D176: 2567.33813 | E176: 2881.739617 | F176: 2423.244513 | G176: 3053.096771 | H176: 2158.865431 | I176: 3426.985256
A177: 2800 | B177: 2720.289435 | C177: 2882.046263 | D177: 2642.848076 | E177: 2966.496664 | F177: 2494.516411 | G177: 3142.893735 | H177: 2222.361473 | I177: 3527.77894
A178: 2900 | B178: 2817.442629 | C178: 2984.976486 | D178: 2737.235507 | E178: 3072.442974 | F178: 2583.606283 | G178: 3255.13994 | H178: 2301.731525 | I178: 3653.771045
A179: 3000 | B179: 2914.595823 | C179: 3087.90671 | D179: 2831.622938 | E179: 3178.389283 | F179: 2672.696154 | G179: 3367.386145 | H179: 2381.101578 | I179: 3779.76315
A180: 3070 | B180: 2982.603059 | C180: 3159.957866 | D180: 2897.69414 | E180: 3252.5517 | F180: 2735.059065 | G180: 3445.958488 | H180: 2436.660615 | I180: 3867.957623
A181: 3150 | B181: 3060.325615 | C181: 3242.302045 | D181: 2973.204085 | E181: 3337.308747 | F181: 2806.330962 | G181: 3535.755452 | H181: 2500.156657 | I181: 3968.751307
A182: 3250 | B182: 3157.478809 | C182: 3345.232269 | D182: 3067.591516 | E182: 3443.255057 | F182: 2895.420834 | G182: 3648.001657 | H182: 2579.526709 | I182: 4094.743412
A183: 3350 | B183: 3254.632003 | C183: 3448.162493 | D183: 3161.978947 | E183: 3549.201366 | F183: 2984.510706 | G183: 3760.247862 | H183: 2658.896762 | I183: 4220.735517
A184: 3450 | B184: 3351.785197 | C184: 3551.092716 | D184: 3256.366379 | E184: 3655.147676 | F184: 3073.600578 | G184: 3872.494067 | H184: 2738.266815 | I184: 4346.727622
A185: 3550 | B185: 3448.938391 | C185: 3654.02294 | D185: 3350.75381 | E185: 3761.093985 | F185: 3162.690449 | G185: 3984.740271 | H185: 2817.636867 | I185: 4472.719727
A186: 3650 | B186: 3546.091585 | C186: 3756.953164 | D186: 3445.141241 | E186: 3867.040294 | F186: 3251.780321 | G186: 4096.986476 | H186: 2897.00692 | I186: 4598.711832
A187: 3750 | B187: 3643.244779 | C187: 3859.883387 | D187: 3539.528673 | E187: 3972.986604 | F187: 3340.870193 | G187: 4209.232681 | H187: 2976.376972 | I187: 4724.703937
A188: 3870 | B188: 3759.828612 | C188: 3983.399656 | D188: 3652.79359 | E188: 4100.122175 | F188: 3447.778039 | G188: 4343.928127 | H188: 3071.621036 | I188: 4875.894463
A189: 4000 | B189: 3886.127765 | C189: 4117.208947 | D189: 3775.497251 | E189: 4237.852377 | F189: 3563.594873 | G189: 4489.848193 | H189: 3174.802104 | I189: 5039.6842
A190: 4120 | B190: 4002.711598 | C190: 4240.725215 | D190: 3888.762168 | E190: 4364.987949 | F190: 3670.502719 | G190: 4624.543639 | H190: 3270.046167 | I190: 5190.874726
A191: 4250 | B191: 4129.01075 | C191: 4374.534506 | D191: 4011.465829 | E191: 4502.718151 | F191: 3786.319552 | G191: 4770.463705 | H191: 3373.227235 | I191: 5354.664462
A192: 4370 | B192: 4245.594583 | C192: 4498.050774 | D192: 4124.730746 | E192: 4629.853722 | F192: 3893.227398 | G192: 4905.159151 | H192: 3468.471299 | I192: 5505.854988
A193: 4500 | B193: 4371.893735 | C193: 4631.860065 | D193: 4247.434407 | E193: 4767.583925 | F193: 4009.044232 | G193: 5051.079217 | H193: 3571.652367 | I193: 5669.644725
A194: 4620 | B194: 4488.477568 | C194: 4755.376333 | D194: 4360.699325 | E194: 4894.719496 | F194: 4115.952078 | G194: 5185.774663 | H194: 3666.89643 | I194: 5820.835251
A195: 4750 | B195: 4614.77672 | C195: 4889.185624 | D195: 4483.402985 | E195: 5032.449698 | F195: 4231.768911 | G195: 5331.694729 | H195: 3770.077498 | I195: 5984.624987
A196: 4870 | B196: 4731.360553 | C196: 5012.701892 | D196: 4596.667903 | E196: 5159.58527 | F196: 4338.676757 | G196: 5466.390175 | H196: 3865.321562 | I196: 6135.815513
A197: 5000 | B197: 4857.659706 | C197: 5146.511183 | D197: 4719.371563 | E197: 5297.315472 | F197: 4454.493591 | G197: 5612.310242 | H197: 3968.50263 | I197: 6299.605249
A198: 5150 | B198: =$A198/B$3 -> 5003.389497 | C198: =$A198*B$3 -> 5300.906519 | D198: =$A198/D$3 -> 4860.95271 | E198: =$A198*D$3 -> 5456.234936 | F198: =$A198/F$3 -> 4588.128398 | G198: =$A198*F$3 -> 5780.679549 | H198: =$A198/H$3 -> 4087.557709 | I198: =$A198*H$3 -> 6488.593407
A199: 5300 | B199: 5149.119288 | C199: 5455.301854 | D199: 5002.533857 | E199: 5615.1544 | F199: 4721.763206 | G199: 5949.048856 | H199: 4206.612788 | I199: 6677.581564
A200: 5450 | B200: 5294.849079 | C200: 5609.69719 | D200: 5144.115004 | E200: 5774.073864 | F200: 4855.398014 | G200: 6117.418163 | H200: 4325.667867 | I200: 6866.569722
... 69 more rows
